bitfinex-derivatives/quotes_SOLF0:USTF0_20250818
["timestamp","ask_amount","ask_price","bid_price","bid_amount"]
[1755498930774,3.12,181.59,181.44,5.67588042]
[1755498931375,3.12,181.59,181.53,5.505]
[1755498931579,3.12,181.59,181.44,5.67588042]
[1755498931780,3.12,181.59,181.48,5.67588042]
[1755498932580,3.12,181.58,181.48,5.67588042]
[1755498932775,3.12,181.58,181.52,5.67588042]
[1755498933786,3.12,181.58,181.56,5.5039]
[1755498934178,3.12,181.67,181.52,5.67588042]
[1755498934478,3.12,181.65,181.52,5.67588042]
[1755498935382,3.12,181.65,181.5,5.67588042]
[1755498936074,3.12,181.65,181.54,5.5048]
[1755498937580,3.95286335,181.64,181.47,5.67588042]
[1755498937883,3.12,181.62,181.47,5.67588042]
[1755498938580,3.12,181.62,181.52,5.5052]
[1755498938784,3.12,181.62,181.47,5.67588042]
[1755498939678,3.12,181.62,181.43,142.56]
[1755498939875,3.12,181.62,181.45,5.67588042]
[1755498940084,3.12,181.62,181.52,5.5054]
[1755498940580,3.12,181.62,181.43,142.56]
[1755498940581,3.12,181.61,181.43,142.56]
[1755498940789,7.07034672,181.61,181.43,142.56]
[1755498940983,3.12,181.59,181.48,5.5064]
[1755498941780,3.12,181.59,181.43,142.56]
[1755498941985,3.12,181.57,181.38,5.67588042]
[1755498942388,3.12,181.57,181.45,5.5075]
[1755498942685,3.12,181.57,181.38,5.67588042]
[1755498942883,3.12,181.57,181.46,5.507]
[1755498943080,3.12,181.57,181.37,148.27588042]
[1755498943481,3.12,181.57,181.45,5.5073]
[1755498944278,3.12,181.57,181.46,5.5072]
[1755498944478,3.12,181.57,181.37,148.27588042]
[1755498944680,3.12,181.57,181.48,5.5064]
[1755498944885,3.12,181.57,181.41,5.67588042]
[1755498945086,3.12,181.57,181.45,5.67588042]
[1755498945474,3.12,181.56,181.53,5.5051]
[1755498945680,3.12,181.55,181.53,5.5051]
[1755498945988,3.12,181.54,181.51,5.5055]
[1755498946177,369.88,181.62,181.51,5.5055]
[1755498946379,3.94652142,181.61,181.51,5.5055]
[1755498946578,3.12,181.54,181.45,5.67588042]
[1755498947279,3.12,181.54,181.51,5.5055]
[1755498947680,3.12,181.54,181.45,5.67588042]
[1755498947880,3.12,181.61,181.49,5.67588042]
[1755498949082,3.12,181.61,181.53,5.5049]
[1755498949291,3.12,181.61,181.49,5.67588042]
[1755498949587,3.12,181.61,181.52,5.5053]
[1755498949984,3.12,181.61,181.49,5.67588042]
[1755498950187,3.12,181.61,181.46,142.62]
[1755498950592,3.12,181.61,181.49,5.5061]
[1755498950888,3.12,181.61,181.46,142.62]
[1755498951690,3.12,181.61,181.53,5.5048]
[1755498951890,3.12,181.61,181.49,5.67588042]
[1755498952388,3.12,181.61,181.54,5.5048]
[1755498952583,3.12,181.61,181.49,5.67588042]
[1755498952784,3.12,181.61,181.47,5.67588042]
[1755498953184,3.12,181.61,181.52,5.5051]
[1755498953384,3.12,181.61,181.47,5.67588042]
[1755498954792,3.12,181.61,181.51,5.5055]
[1755498954986,3.12,181.61,181.47,5.67588042]
[1755498955682,4.00179694,181.6,181.51,5.5057]
[1755498955878,3.14,181.58,181.51,5.5057]
[1755498956282,3.14,181.58,181.47,5.67588042]
[1755498956888,369.88,181.62,181.55,5.5043]
[1755498957089,3.14,181.57,181.55,5.5043]
[1755498957388,3.14,181.56,181.55,5.5043]
[1755498958594,3.14,181.58,181.56,5.5039]
[1755498958796,3.14,181.57,181.56,5.5039]
[1755498959992,3.14,181.57,181.55,5.5044]
[1755498960195,3.14,181.56,181.55,5.5044]
[1755498960394,3.14,181.56,181.47,5.67588042]
[1755498960588,3.14,181.56,181.52,5.5052]
[1755498960991,3.14,181.56,181.5,5.5059]
[1755498961188,3.14,181.56,181.46,142.62]
[1755498961600,3.14,181.56,181.52,5.5052]
[1755498961799,3.14,181.56,181.46,142.62]
[1755498962994,3.14,181.55,181.53,5.5049]
[1755498963194,3.14,181.54,181.53,5.5049]
[1755498963395,3.14,181.54,181.46,142.62]
[1755498963994,3.14,181.54,181.51,5.5057]
[1755498964202,3.14,181.54,181.46,142.62]
[1755498964496,3.14,181.54,181.52,5.5053]
[1755498964803,3.14,181.53,181.52,5.5053]
[1755498966400,3.14,181.61,181.53,5.5051]
[1755498966703,3.14,181.59,181.53,5.5051]
[1755498966904,3.14,181.57,181.46,142.62]
[1755498967195,3.14,181.55,181.46,142.62]
[1755498968602,4.02942349,181.54,181.46,142.62]
[1755498968805,3.14,181.53,181.46,142.62]
[1755498969003,3.14,181.52,181.51,5.5054]
[1755498969711,6.12136422,181.62,181.52,5.5052]
[1755498970005,3.14,181.53,181.52,5.5052]
[1755498970608,3.14,181.62,181.54,5.5046]
[1755498970802,4.03144342,181.61,181.54,5.5046]
[1755498971110,3.14,181.59,181.54,5.5046]
[1755498971300,4.03144342,181.58,181.54,5.5046]
[1755498971496,4.03144342,181.58,181.46,148.29588042]
[1755498971497,3.14,181.56,181.55,5.5044]
[1755498972704,3.14,181.58,181.56,5.504]
[1755498972904,3.14,181.57,181.56,5.504]
[1755498973412,7.17095794,181.57,181.48,5.67588042]
[1755498973598,3.14,181.55,181.48,5.67588042]
[1755498974705,3.14,181.58,181.48,5.67588042]
[1755498975119,3.14,181.58,181.57,5.5039]
[1755498975520,3.14,181.58,181.48,5.67588042]
[1755498975717,3.14,181.58,181.55,5.5042]
[1755498976421,3.14,181.58,181.56,5.5042]
[1755498978122,3.6368396,181.65,181.56,5.5042]
[1755498978420,3.14,181.57,181.56,5.5042]
[1755498979122,152.27820382,181.68,181.59,5.5033]
[1755498979316,8.38161054,181.67,181.55,3.6368396]
[1755498979518,3.14,181.65,181.55,3.6368396]
[1755498979721,3.14,181.63,181.55,3.6368396]
[1755498979919,4.02813684,181.62,181.55,3.6368396]
[1755498980226,3.14,181.68,181.58,3.6368396]
[1755498980524,3.14,181.66,181.58,3.6368396]
[1755498980724,3.14,181.64,181.62,5.5021]
[1755498980925,3.14,181.63,181.62,5.5021]
[1755498982928,2.86,181.66,181.63,5.5019]
[1755498983231,2.86,181.65,181.61,3.6368396]
[1755498983429,2.86,181.64,181.61,3.6368396]
[1755498983729,2.86,181.66,181.61,3.6368396]
[1755498983929,142.48,181.75,181.61,3.6368396]
[1755498983930,2.86,181.68,181.66,5.501]
[1755498984124,2.86,181.68,181.61,3.6368396]
[1755498985121,2.86,181.67,181.64,3.6368396]
[1755498985327,2.86,181.74,181.64,3.6368396]
[1755498985534,2.86,181.72,181.64,3.6368396]
[1755498986227,2.86,181.72,181.67,5.5006]
[1755498986424,2.86,181.72,181.64,3.6368396]
[1755498987335,2.86,181.72,181.68,5.5003]
[1755498987536,2.86,181.74,181.67,3.6368396]
[1755498988427,121.7072961,181.79,181.7,3.6368396]
[1755498988624,120.74960776,181.79,181.7,3.6368396]
[1755498988932,2.86,181.78,181.72,5.4993]
[1755498989122,2.86,181.78,181.7,3.6368396]
[1755498989326,2.86,181.78,181.69,3.6368396]
[1755498989529,2.86,181.78,181.7,5.4999]
[1755498989735,2.86,181.78,181.59,11.0061]
[1755498990036,2.86,181.76,181.64,3.6368396]
[1755498990228,2.86,181.74,181.59,142.38]
[1755498990426,2.86,181.74,181.62,3.6368396]
[1755498990627,2.86,181.74,181.65,5.5014]
[1755498991027,2.86,181.74,181.62,3.6368396]
[1755498991230,2.86,181.74,181.66,5.5012]
[1755498992033,2.86,181.74,181.67,5.5009]
[1755498992439,2.86,181.74,181.6,5.65066541]
[1755498993031,2.86,181.74,181.64,5.65066541]
[1755498993732,2.86,181.74,181.59,142.38]
[1755498994038,2.86,181.74,181.67,5.5008]
[1755498994838,2.86,181.74,181.59,142.38]
[1755498995337,2.86,181.74,181.57,5.65066541]
[1755498995532,2.86,181.72,181.57,5.65066541]
[1755498995737,2.86,181.72,181.62,5.5021]
[1755498995939,2.86,181.7,181.57,5.65066541]
[1755498996130,2.86,181.7,181.62,5.5024]
[1755498996336,4.00501281,181.69,181.57,5.65066541]
[1755498996536,2.86,181.7,181.57,5.65066541]
[1755498996738,2.86,181.68,181.57,5.65066541]
[1755498996945,2.86,181.68,181.62,5.5022]
[1755498997143,2.86,181.68,181.57,5.65066541]
[1755498997645,2.86,181.68,181.63,5.5019]
[1755498998335,2.86,181.68,181.55,512.16]
[1755498998643,2.86,181.66,181.49,5.65066541]
[1755498998842,2.86,181.64,181.49,5.65066541]
[1755498999045,2.86,181.64,181.53,5.65066541]
[1755498999343,2.86,181.64,181.61,5.5026]
[1755498999543,2.86,181.64,181.53,5.65066541]
[1755499000038,2.86,181.63,181.52,11.0106]
[1755499000341,2.86,181.63,181.56,5.65066541]
[1755499001839,2.86,181.63,181.59,5.5031]
[1755499002146,2.86,181.63,181.52,5.65066541]
[1755499002343,2.86,181.63,181.55,5.5044]
[1755499002643,2.86,181.63,181.48,90.65432455]
[1755499003437,2.86,181.63,181.48,85.00365914]
[1755499003941,2.86,181.61,181.53,5.5049]
[1755499004239,2.86,181.61,181.48,85.00365914]
[1755499004741,2.86,181.61,181.55,5.5045]
[1755499004940,2.86,181.61,181.48,85.00365914]
[1755499005444,2.86,181.61,181.57,5.5039]
[1755499005639,2.86,181.61,181.48,85.00365914]
[1755499005946,2.86,181.61,181.59,5.5031]
[1755499006136,2.86,181.61,181.51,5.65066541]
[1755499006544,2.86,181.61,181.6,5.503]
[1755499006733,2.86,181.72,181.55,5.65066541]
[1755499006938,4.03170238,181.71,181.55,5.65066541]
[1755499007134,2.86,181.69,181.55,5.65066541]
[1755499007335,4.03170238,181.68,181.55,5.65066541]
[1755499007538,5.65066541,181.74,181.55,5.65066541]
[1755499007539,2.86,181.67,181.55,5.65066541]
[1755499008339,2.86,181.67,181.64,5.5017]
[1755499008742,2.86,181.67,181.55,5.65066541]
[1755499009843,2.86,181.66,181.65,5.5015]
[1755499010244,2.86,181.73,181.66,5.501]
[1755499010544,2.86,181.71,181.66,5.501]
[1755499010744,2.86,181.71,181.59,5.65066541]
[1755499011146,2.86,181.71,181.63,5.65066541]
[1755499011842,2.86,181.71,181.65,5.5014]
[1755499012440,2.86,181.71,181.64,5.5017]
[1755499012644,2.86,181.71,181.59,5.65066541]
[1755499013439,2.86,181.71,181.66,5.5011]
[1755499014348,2.86,181.71,181.67,5.5008]
[1755499014541,2.86,181.71,181.59,5.65066541]
[1755499015246,2.86,181.71,181.69,5.5002]
[1755499015441,2.93,181.7,181.69,5.5002]
[1755499016250,2.93,181.7,181.68,5.5005]
[1755499016844,2.93,181.7,181.63,5.65066541]
[1755499018446,2.93,181.7,181.59,5.65066541]
[1755499018848,2.93,181.7,181.64,5.5017]
[1755499020252,2.93,181.7,181.65,5.5014]
[1755499020959,2.93,181.7,181.58,142.28]
[1755499021457,2.93,181.7,181.67,5.5007]
[1755499021656,2.93,181.7,181.58,142.28]
[1755499021854,2.93,181.7,181.61,5.65066541]
[1755499022461,2.93,181.78,181.65,5.65066541]
[1755499022645,2.93,181.76,181.61,11.005]
[1755499022947,2.93,181.76,181.65,5.65066541]
[1755499023358,2.93,181.76,181.74,5.4985]
[1755499023555,2.93,181.76,181.65,5.65066541]
[1755499024152,2.93,181.78,181.65,5.65066541]
[1755499024351,2.93,181.76,181.65,5.65066541]
[1755499024553,2.93,181.76,181.73,5.4988]
[1755499025154,120.74960776,181.79,181.65,5.65066541]
[1755499025452,2.93,181.77,181.69,5.65066541]
[1755499026255,2.93,181.77,181.74,5.4986]
[1755499026456,2.93,181.77,181.69,5.65066541]
[1755499026858,2.93,181.77,181.73,5.4989]
[1755499027357,2.93,181.77,181.69,5.65066541]
[1755499027558,2.93,181.76,181.75,5.4984]
[1755499027755,2.93,181.76,181.69,5.65066541]
[1755499028254,2.93,181.75,181.69,5.65066541]
[1755499028761,2.93,181.75,181.74,5.4987]
[1755499029856,2.93,181.82,181.69,5.65066541]
[1755499030056,2.93,181.8,181.69,5.65066541]
[1755499030257,2.93,181.79,181.77,5.4977]
[1755499030453,2.93,181.85,181.71,5.65066541]
[1755499030657,4.03857451,181.84,181.71,5.65066541]
[1755499030858,4.03857451,181.83,181.71,5.65066541]
[1755499031054,2.93,181.81,181.71,5.65066541]
[1755499031457,2.93,181.81,181.76,5.4979]
[1755499032052,2.93,181.81,181.75,5.4983]
[1755499032253,2.93,181.81,181.71,5.65066541]
[1755499033554,2.93,181.81,181.75,5.4982]
[1755499033754,2.93,181.81,181.68,5.65066541]
[1755499034557,2.93,181.81,181.74,5.4987]
[1755499035158,2.93,181.81,181.75,5.4983]
[1755499035661,2.93,181.81,181.74,5.4986]
[1755499035961,2.93,181.81,181.68,5.65066541]
[1755499036354,2.93,181.81,181.7,3.62953749]
[1755499037261,2.93,181.81,181.74,5.4985]
[1755499037465,2.93,181.81,181.7,3.62953749]
[1755499037658,2.93,181.81,181.74,5.4985]
[1755499039057,2.93,181.81,181.73,5.4989]
[1755499039360,2.93,181.81,181.7,3.62953749]
[1755499039663,2.93,181.81,181.73,5.4988]
[1755499040255,2.93,181.81,181.68,3.62953749]
[1755499040456,4.02926828,181.8,181.68,3.62953749]
[1755499040761,2.93,181.78,181.71,5.4995]
[1755499040962,2.93,181.78,181.65,3.62953749]
[1755499041463,2.93,181.78,181.7,5.4998]
[1755499042358,2.93,181.78,181.69,5.5002]
[1755499042568,3.06,181.75,181.65,3.62953749]
[1755499043458,3.06,181.75,181.68,5.5004]
[1755499043666,3.06,181.75,181.65,3.62953749]
[1755499045165,3.06,181.75,181.68,3.62953749]
[1755499046767,3.06,181.75,181.71,5.4995]
[1755499047067,3.06,181.75,181.68,3.62953749]
[1755499047971,3.06,181.75,181.69,3.62953749]
[1755499049866,3.06,181.75,181.72,3.62953749]
[1755499050573,3.06,181.75,181.74,5.4987]
[1755499050865,3.06,181.83,181.72,3.62953749]
[1755499051066,3.06,181.81,181.72,9.12873749]
[1755499051367,3.06,181.79,181.72,3.62953749]
[1755499051666,3.06,181.77,181.72,3.62953749]
[1755499051961,3.06,181.77,181.72,9.12883749]
[1755499052966,3.06,181.77,181.73,5.499]
[1755499056972,3.06,181.77,181.72,5.4992]
[1755499057171,4.04695333,181.76,181.72,5.4992]
[1755499057374,3.06,181.75,181.69,3.62953749]
[1755499057567,3.06,181.75,181.7,5.4998]
[1755499059874,3.06,181.75,181.71,5.4995]
[1755499060480,3.06,181.75,181.72,5.4994]
[1755499060973,3.06,181.75,181.71,5.4995]
[1755499061174,3.06,181.75,181.69,3.62953749]
[1755499061681,3.06,181.75,181.71,5.4995]
[1755499062983,3.06,181.75,181.72,5.4993]
[1755499063583,6.12136422,181.84,181.75,5.4983]
[1755499063789,3.06,181.76,181.75,5.4983]
[1755499064288,3.06,181.76,181.74,5.4986]
[1755499064478,3.06,181.75,181.74,5.4986]
[1755499065888,3.06,181.83,181.73,5.4989]
[1755499066083,4.05831712,181.82,181.73,5.4989]
[1755499066284,3.06,181.8,181.73,5.4989]
[1755499066478,3.06,181.78,181.74,5.4986]
[1755499066679,3.06,181.76,181.74,5.4986]
[1755499068685,4.06336896,181.75,181.69,3.62953749]
[1755499068889,3.06,181.74,181.69,3.62953749]
[1755499069076,3.06,181.74,181.61,152.9049]
[1755499069283,3.06,181.74,181.68,3.62953749]
[1755499070185,3.06,181.74,181.71,5.4995]
[1755499070686,4.06536248,181.73,181.68,5.5004]
[1755499070887,3.06,181.72,181.68,5.5004]
[1755499071090,3.06,181.72,181.66,3.62953749]
[1755499072981,3.06,181.72,181.69,5.5]
[1755499073387,3.06,181.72,181.66,3.62953749]
[1755499073992,3.05,181.79,181.69,3.62953749]
[1755499074193,3.05,181.77,181.69,3.62953749]
[1755499074489,3.05,181.75,181.69,3.62953749]
[1755499074792,3.05,181.74,181.72,3.62953749]
[1755499074981,3.05,181.81,181.72,3.62953749]
[1755499075185,3.05,181.79,181.72,3.62953749]
[1755499075393,4.09016967,181.78,181.72,3.62953749]
[1755499075595,3.05,181.76,181.72,3.62953749]
[1755499076294,3.05,181.76,181.75,5.4982]
[1755499076496,7.14125987,181.76,181.75,5.4982]
[1755499076995,3.05,181.76,181.75,5.4982]
[1755499079194,3.05,181.82,181.73,3.62953749]
[1755499079495,3.05,181.8,181.73,3.62953749]
[1755499079689,3.05,181.78,181.73,3.62953749]
[1755499079891,3.05,181.76,181.73,3.62953749]
[1755499080399,3.05,181.75,181.72,5.4992]
[1755499080897,3.05,181.75,181.7,3.62953749]
[1755499082099,3.05,181.73,181.7,3.62953749]
[1755499083191,3.05,181.73,181.7,9.12923749]
[1755499084500,3.05,181.78,181.68,5.5004]
[1755499084696,4.0945193,181.77,181.68,5.5004]
[1755499084899,3.05,181.75,181.62,369.54]
[1755499085095,3.05,181.73,181.67,5.5008]
[1755499085297,3.05,181.71,181.67,5.5008]
[1755499085601,3.05,181.71,181.68,5.5005]
[1755499085897,3.05,181.71,181.65,3.62953749]
[1755499086794,3.05,181.71,181.68,5.5004]
[1755499087296,3.05,181.71,181.65,3.62953749]
[1755499087505,3.05,181.71,181.67,5.5008]
[1755499089399,4.09227385,181.7,181.62,3.62953749]
[1755499089590,6.12136422,181.76,181.62,3.62953749]
[1755499089591,3.05,181.68,181.62,3.62953749]
[1755499089797,3.05,181.68,181.65,5.5014]
[1755499090103,3.05,181.68,181.62,3.62953749]
[1755499090401,3.05,181.67,181.62,3.62953749]
[1755499090799,3.05,181.66,181.62,3.62953749]
[1755499091005,3.05,181.66,181.65,5.5012]
[1755499091891,3.05,181.66,181.64,5.5016]
[1755499092299,3.05,181.66,181.62,3.62953749]
[1755499092499,3.05,181.66,181.65,5.5015]
[1755499092899,3.05,181.74,181.69,5.5003]
[1755499093102,4.08749417,181.73,181.69,5.5003]
[1755499093301,4.08749417,181.72,181.69,5.5003]
[1755499093496,4.08749417,181.71,181.69,5.5003]
[1755499093701,3.05,181.7,181.69,5.5003]
[1755499094104,3.05,181.77,181.69,5.5003]
[1755499094304,3.05,181.75,181.69,5.5003]
[1755499094606,3.05,181.73,181.69,5.5003]
[1755499094803,4.08679185,181.72,181.68,9.12993749]
[1755499095004,6.12136422,181.78,181.68,9.12993749]
[1755499095005,3.05,181.71,181.68,9.12993749]
[1755499095406,3.05,181.71,181.69,5.5002]
[1755499096209,3.05,181.71,181.68,9.13003749]
[1755499096410,3.05,181.71,181.65,3.62953749]
[1755499096905,3.05,181.69,181.65,9.13093749]
[1755499097105,6.12136422,181.76,181.65,5.5014]
[1755499097406,3.05,181.74,181.64,5.5017]
[1755499097613,3.05,181.72,181.64,5.5017]
[1755499097908,3.05,181.7,181.63,5.502]
[1755499098213,3.62953749,181.75,181.6,141.66]
[1755499098214,3.05,181.68,181.6,141.66]
[1755499098508,3.05,181.66,181.6,141.66]
[1755499099099,3.05,181.66,181.6,147.1627]
[1755499099611,3.05,181.66,181.6,141.66]
[1755499100011,3.05,181.66,181.58,3.62953749]
[1755499100205,3.05,181.66,181.61,5.5025]
[1755499101307,3.05,181.66,181.58,3.62953749]
[1755499102218,4.07254358,181.65,181.54,3.62953749]
[1755499102416,3.0,181.64,181.57,5.5039]
[1755499102713,4.06918497,181.63,181.54,3.62953749]
[1755499102914,3.0,181.62,181.54,3.62953749]
[1755499105016,3.0,181.62,181.53,3.62953749]
[1755499105210,3.0,181.62,181.54,5.5046]
[1755499106717,3.0,181.62,181.49,141.46]
[1755499106913,4.05755537,181.61,181.48,3.62953749]
[1755499107213,3.0,181.59,181.46,3.62953749]
[1755499107608,4.05303553,181.58,181.46,3.62953749]
[1755499107823,3.0,181.57,181.53,3.62953749]
[1755499108118,3.0,181.56,181.53,3.62953749]
[1755499108320,3.0,181.63,181.53,3.62953749]
[1755499108516,4.0530951,181.62,181.45,84.78438943]
[1755499108815,3.0,181.6,181.53,5.505]
[1755499109019,3.0,181.6,181.51,3.62953749]
[1755499109419,3.0,181.6,181.52,5.5054]
[1755499109616,3.0,181.6,181.51,3.62953749]
[1755499110315,3.0,181.6,181.54,3.62953749]
[1755499110721,3.0,181.6,181.55,5.5044]
[1755499111517,3.0,181.6,181.54,9.13423749]
[1755499112218,3.0,181.6,181.54,3.62953749]
[1755499112617,3.0,181.6,181.51,3.62953749]
[1755499112821,3.0,181.6,181.52,5.5052]
[1755499113026,3.0,181.6,181.51,3.62953749]
[1755499113718,3.0,181.6,181.55,5.5044]
[1755499114521,3.0,181.6,181.54,9.13423749]
[1755499114721,3.0,181.6,181.51,3.62953749]
[1755499115219,3.0,181.6,181.54,3.62953749]
[1755499115612,3.0,181.6,181.58,5.5034]
[1755499115818,119.281522,181.64,181.58,5.5034]
[1755499116020,3.0,181.63,181.57,3.62953749]
[1755499116922,3.0,181.68,181.57,3.62953749]
[1755499117122,3.0,181.66,181.57,3.62953749]
[1755499117325,3.0,181.66,181.59,5.5032]
[1755499117621,3.0,181.66,181.57,3.62953749]
[1755499119218,3.0,181.66,181.6,5.5029]
[1755499119420,3.0,181.66,181.59,3.62953749]
[1755499119821,3.0,181.66,181.61,5.5026]
[1755499120023,3.0,181.65,181.59,3.62953749]
[1755499120224,386.17,181.72,181.59,3.62953749]
[1755499120425,3.0,181.67,181.59,3.62953749]
[1755499121026,3.0,181.69,181.59,3.62953749]
[1755499121528,3.0,181.69,181.62,5.5022]
[1755499121730,3.0,181.67,181.59,3.62953749]
[1755499121934,3.0,181.67,181.61,5.5026]
[1755499123526,3.0,181.67,181.62,5.5024]
[1755499123720,3.0,181.67,181.59,3.62953749]
[1755499124232,3.0,181.67,181.56,3.62953749]
[1755499124530,3.0,181.65,181.56,3.62953749]
[1755499125527,3.0,181.65,181.58,5.5035]
[1755499128532,3.0,181.63,181.58,5.5035]
[1755499128734,3.0,181.62,181.56,3.62953749]
[1755499129230,3.0,181.62,181.6,5.5028]
[1755499129630,141.26,181.7,181.6,5.5028]
[1755499129833,3.0,181.61,181.6,5.5028]
[1755499130023,3.0,181.69,181.56,3.62953749]
[1755499130228,141.26,181.7,181.56,3.62953749]
[1755499130229,3.0,181.67,181.56,3.62953749]
[1755499130425,3.0,181.65,181.56,3.62953749]
[1755499130738,3.0,181.63,181.56,3.62953749]
[1755499131836,3.0,181.63,181.58,5.5035]
[1755499132035,3.0,181.63,181.56,3.62953749]
[1755499132237,3.0,181.63,181.59,3.62953749]
[1755499132626,22.63136422,181.71,181.59,3.62953749]
[1755499132828,3.04,181.69,181.61,5.5024]
[1755499133031,3.04,181.67,181.61,5.5024]
[1755499133235,4.06205815,181.66,181.61,5.5024]
[1755499133430,4.06205815,181.65,181.61,5.5024]
[1755499133630,3.04,181.63,181.61,5.5024]
[1755499133836,16.51,181.71,181.61,5.5024]
[1755499134029,16.51,181.69,181.56,3.62953749]
[1755499134338,3.04,181.67,181.56,3.62953749]
[1755499134538,3.04,181.65,181.56,3.62953749]
[1755499134727,3.04,181.63,181.56,3.62953749]
[1755499134931,3.04,181.63,181.57,5.5038]
[1755499135135,3.04,181.61,181.56,3.62953749]
[1755499135328,3.04,181.6,181.56,3.62953749]
[1755499135839,3.04,181.62,181.56,3.62953749]
[1755499136035,16.51,181.69,181.59,5.5031]
[1755499136339,3.04,181.63,181.56,3.62953749]
[1755499137236,3.04,181.63,181.59,5.503]
[1755499138336,3.04,181.62,181.6,5.5028]
[1755499138841,3.04,181.62,181.61,5.5027]
[1755499140541,3.04,181.62,181.56,3.62953749]
[1755499141344,3.04,181.62,181.51,11.0114]
[1755499141536,4.0788488,181.61,181.53,3.62953749]
[1755499141841,3.04,181.62,181.53,3.62953749]
[1755499142141,22.63136422,181.67,181.56,5.5041]
[1755499142142,3.04,181.6,181.56,5.5041]
[1755499142342,22.63136422,181.67,181.56,5.5041]
[1755499142542,3.04,181.65,181.53,3.62953749]
[1755499142743,3.04,181.63,181.56,3.62953749]
[1755499142942,9.75090171,181.68,181.56,3.62953749]
[1755499142943,4.08015903,181.62,181.56,3.62953749]
[1755499143139,3.04,181.6,181.58,5.5033]
[1755499143538,3.62953749,181.68,181.58,5.5033]
[1755499143734,3.04,181.59,181.58,5.5033]
[1755499144638,3.04,181.59,181.57,5.5038]
[1755499144838,9.75090171,181.68,181.57,5.5038]
[1755499145044,3.04,181.66,181.57,5.5038]
[1755499145245,3.04,181.64,181.56,9.13373749]
[1755499145445,3.04,181.62,181.5,141.18]
[1755499145641,3.62953749,181.68,181.51,3.62953749]
[1755499145642,3.04,181.6,181.51,3.62953749]
[1755499145839,3.04,181.58,181.51,3.62953749]
[1755499146039,3.04,181.58,181.54,3.62953749]
[1755499146535,3.04,181.6,181.54,3.62953749]
[1755499147448,3.04,181.6,181.57,3.62953749]
[1755499147946,3.04,181.6,181.59,5.5033]
[1755499148743,3.04,181.59,181.58,5.5035]
[1755499148937,3.04,181.59,181.57,3.62953749]
[1755499149140,3.04,181.57,181.54,3.62953749]
[1755499149341,3.04,181.56,181.55,5.5042]
[1755499149541,6.12136422,181.67,181.54,3.62953749]
[1755499149745,3.04,181.65,181.57,5.5039]
[1755499149946,3.04,181.63,181.57,5.5039]
[1755499150137,3.04,181.61,181.57,5.5039]
[1755499151145,3.04,181.61,181.58,5.5035]
[1755499151448,3.04,181.6,181.58,5.5035]
[1755499151647,3.04,181.59,181.58,5.5035]
[1755499152546,3.04,181.59,181.54,3.62953749]
[1755499152952,3.04,181.59,181.49,140.96]
[1755499153255,3.04,181.57,181.49,140.96]
[1755499153550,3.04,181.57,181.51,3.62953749]
[1755499154746,3.04,181.57,181.53,5.505]
[1755499155252,3.04,181.57,181.51,3.62953749]
[1755499155454,3.04,181.57,181.55,5.5044]
[1755499155754,3.04,181.57,181.51,3.62953749]